Cogmind - Beta 13 @@@ ROGUE MODE // 2024.04.04 @ 21:59:00 Player: Razor Feather Result: Destroyed by S-27 Virus with Autogun Performance ------------- Evolutions (3) 1500 Regions Visited (5) 1000 Robots Destroyed (126) 630 Value Destroyed (3161) 3161 Prototype IDs (5) 100 Alien Tech Used (0) 0 Bonus (419) 419 TOTAL SCORE: 6810 Bonus ------- High Alert Combat Kills 419 Cogmind --------- Core Integrity 0/700 Matter 160/300 Energy 432/480 System Corruption 0% Temperature Cool (84) Movement Walking (190) Ox1 Location -7/Storage Parts ------- > --- POWER (2) -------- Improved Deuterium Engine Improved Deuterium Engine > --- PROPULSION (3) --- Aluminum Leg Aluminum Leg Carbon-fiber Leg > --- UTILITY (5) ------ Large Storage Unit Improved Terrain Scanner Advanced Terrain Scan Processor Hacking Suite System Restoration Module > --- WEAPON (3) ------- Heavy Particle Cannon Heavy Particle Cannon Shock Bomb Launcher > --- INVENTORY (15) --- Heavy Ion Engine Light Nuclear Core Light Treads Wheel Compact Wheel Large Storage Unit High-capacity Matter Pod (200) Weapon Cycler Backup Plating III Hardened Heavy Armor Plating Improved Shield Generator Advanced Beam Cannon Chainsword Peak State ------------ > --- POWER ------------ Improved Deuterium Engine Improved Deuterium Engine > --- PROPULSION ------- Improved Titanium Leg Improved Titanium Leg Improved Titanium Leg > --- UTILITY ---------- Improved Heat Sink Large Storage Unit Improved Terrain Scanner Advanced Terrain Scan Processor Hacking Suite > --- WEAPON ----------- Advanced Beam Cannon Plasma Cannon Rocket Launcher > --- INVENTORY -------- Heavy Ion Engine Light Nuclear Core Improved Deuterium Engine Improved Deuterium Engine Carbon-fiber Leg Wheel Large Storage Unit High-capacity Matter Pod Recoil Stabilizer Weapon Cycler Hardened Heavy Armor Plating Advanced Beam Cannon Rocket Launcher Chainsword [Rating: 47] Favorites ----------- Power Improved Deuterium Engine Engine Improved Deuterium Engine Power Core Light Nuclear Core Propulsion Light Treads Treads Light Treads Leg Improved Titanium Leg Wheel Wheel Hover Unit Cooled Airjet Utility Improved Terrain Scanner Device Improved Terrain Scanner Storage Large Storage Unit Processor Terrain Scan Processor Hackware Hacking Suite Protection Medium Armor Plating Weapon Rocket Launcher Energy Gun Backup Laser III Energy Cannon Advanced Beam Cannon Ballistic Gun Assault Rifle Ballistic Cannon Assault Cannon Launcher Rocket Launcher Build | -11 -10 -9 -8 -7 -7 ------- Run | Yrd Mat Mat Mat Fac Sto Slots Evolved 6 | . . 2 2 2 . Power 1 | . . . . 1 . Propulsion 1 | . . 1 . . . Utility 3 | . . . 2 1 . Weapon 1 | . . 1 . . . Parts Attached 74 | 7 6 13 11 32 5 Power 14 | 1 2 2 . 9 . Engine 13 | 1 2 2 . 8 . Core 1 | . . . . 1 . Reactor . | . . . . . . Propulsion 18 | 2 1 4 3 5 3 Treads 7 | 2 1 4 . . . Leg 8 | . . . 3 2 3 Wheel 2 | . . . . 2 . Hover 1 | . . . . 1 . Flight . | . . . . . . Utility 13 | 2 1 . 3 7 . Device 5 | 1 . . 1 3 . Storage 3 | 1 1 . . 1 . Processor 2 | . . . 1 1 . Hackware 1 | . . . . 1 . Protection 2 | . . . 1 1 . Artifact . | . . . . . . Weapon 29 | 2 2 7 5 11 2 Energy Gun 3 | . . . . 3 . Energy Cannon 6 | . . . 2 3 1 Ballistic Gun 7 | 2 1 2 1 1 . Ballistic Cannon 3 | . . 2 1 . . Launcher 10 | . 1 3 1 4 1 Special Weapon . | . . . . . . Impact Weapon . | . . . . . . Slashing Weapon . | . . . . . . Piercing Weapon . | . . . . . . Special Melee Weapon . | . . . . . . Unidentified Prototypes 1 | . . . . 1 . Parts Lost 17 | . 1 . 1 14 1 Power 2 | . . . . 2 . Propulsion 4 | . . . . 4 . Utility 2 | . . . . 2 . Weapon 9 | . 1 . 1 6 1 Highest Loss Streak 7 | . 1 . 1 7 1 To Critical Strikes . | . . . . . . Average Slot Usage (%) 97 | . 100 97 99 94 100 Engine 11 | . 14 11 9 13 15 Treads 15 | . 28 32 8 . . Leg 9 | . . . 18 17 6 Wheel 1 | . . . . 2 10 Device 12 | . 14 11 11 15 15 Storage 9 | . 14 11 9 7 7 Processor 4 | . . . 9 7 7 Hackware 1 | . . . . 5 7 Protection 1 | . . . 6 . . Energy Cannon 5 | . . . 4 12 15 Ballistic Gun 6 | . 21 11 1 . . Ballistic Cannon 5 | . . 10 11 . . Launcher 7 | . 7 9 8 6 7 Naked Turns . | . . . . . . Heaviest Build 62 | 12 29 45 52 62 60 Greatest Support 60 | 40 40 60 60 60 35 Greatest Overweight (x) 5 | 1 . . 2 5 2 Average Overweight (x) . | . . . . . 1 Largest Inventory Capacity 15 | 8 15 15 15 15 15 Average Capacity 14 | 7 10 15 15 15 15 Most Carried 15 | 8 13 15 15 15 15 Average Carried 13 | 4 8 14 14 14 14 Final Capacity 15 | 8 15 15 15 15 15 Final Carried 15 | 6 13 15 15 15 14 Class Distribution -------------------- 59% | Scavenger-Skirmisher 21% | Mutant 17% | Skirmisher Dominant Class ---------------- Mutant | -10/Materials Scavenger-Skirmisher | -9/Materials Scavenger-Skirmisher | -8/Materials Scavenger-Skirmisher | -7/Factory Scavenger-Skirmisher | -7/Storage Resources | -11 -10 -9 -8 -7 -7 ----------- Run | Yrd Mat Mat Mat Fac Sto Matter Collected 2550 | 286 181 727 575 755 26 Remotely . | . . . . . . Salvage Created 3799 | 99 400 1026 742 1457 75 Parts 217 | 8 24 66 51 62 6 Haulers Intercepted 10 | . 1 4 3 2 . Recyclers Shooed 2 | . . 1 . 1 . Parts Field Recycled . | . . . . . . Retrieved Matter . | . . . . . . Parts Self-Destructed . | . . . . . . Prevented . | . . . . . . Kills | -11 -10 -9 -8 -7 -7 ------- Run | Yrd Mat Mat Mat Fac Sto Combat Hostiles Destroyed 74 | . 8 15 20 28 3 Guns 10 | . 6 3 1 . . Cannons 26 | . . 5 6 14 1 AOE 35 | . 2 7 12 12 2 Classes Destroyed 17 | 2 5 4 1 5 . Worker 9 | . . 1 2 6 . Builder 8 | . . 5 1 2 . Tunneler 1 | 1 . . . . . Hauler 10 | . 1 4 3 2 . Recycler 11 | 1 1 3 2 4 . Operator 3 | . 2 1 . . . Watcher 13 | . 2 4 3 4 . Swarmer 18 | . 1 . 12 5 . Cutter 1 | . . . . 1 . Grunt 38 | . 7 10 7 12 2 Brawler 1 | . . 1 . . . Duelist 2 | . . . 1 1 . Sentry 7 | . . 4 . 3 . Demolisher 1 | . . . . 1 . Hunter 2 | . . . . 1 1 Programmer 1 | . . . . 1 . Assembled 3 | . . . . 3 . Best Kill Streak 10 | 2 6 9 10 9 3 Combat Bots Only 8 | . 3 4 8 6 3 Max Kills in Single Turn 4 | 1 2 4 3 4 1 Gunslinging . | . . . . . . Exploded 3 | . 1 2 3 3 1 Melee . | . . . . . . Uniques/NPCs Destroyed . | . . . . . . Combat | -11 -10 -9 -8 -7 -7 -------- Run | Yrd Mat Mat Mat Fac Sto Hostile Shots Fired 306 | . 64 29 64 119 30 Missed 83 | . 12 12 16 34 9 Damage Taken 4243 | . 602 216 623 2350 452 Core 892 | . 96 27 59 527 183 Absorbed by Shields 20 | . . . . 20 . Regen/Repaired (Parts) 166 | . . . . 166 . Core Remaining (%) 85 | 100 61 93 89 . . Volleys Fired 234 | 4 41 61 49 68 11 Largest 3 | 2 2 3 3 3 3 Hottest 186 | 40 50 121 176 181 186 Shots Fired 507 | 8 76 130 112 157 24 Gun 176 | 8 69 82 7 10 . Cannon 258 | . . 36 89 119 14 Launcher 73 | . 7 12 16 28 10 Special . | . . . . . . Kinetic 263 | 8 69 118 68 . . Thermal 171 | . . . 28 129 14 Explosive 70 | . 7 12 16 28 7 Electromagnetic 3 | . . . . . 3 Robot Hit Streak 10 | 3 7 10 5 7 4 Robot Miss Streak 8 | 2 3 5 8 4 5 Penetration Max . | . . . . . . Secondary Targets . | . . . . . . Shots Hit Robots 271 | 4 47 72 51 87 10 Core Hits 218 | 3 27 51 44 85 8 Critical Kills 4 | . 1 . 1 2 . Critical Parts Destroyed 1 | . 1 . . . . Critical Strikes 7 | . 2 1 2 2 . Meltdown 3 | . . . 1 2 . Destroy 2 | . 2 . . . . Blast 2 | . . 1 1 . . Melee Attacks . | . . . . . . Impact . | . . . . . . Slashing . | . . . . . . Piercing . | . . . . . . Sneak Attacks . | . . . . . . Combat Hostiles . | . . . . . . Follow-up Attacks . | . . . . . . Damage Inflicted 9252 | 48 810 1906 2059 3891 538 Guns 1220 | 48 496 582 32 62 . Cannons 3604 | . . 472 1104 1903 125 Explosions 4421 | . 314 852 923 1919 413 Melee . | . . . . . . Ramming 7 | . . . . 7 . Kinetic 2262 | 48 496 1054 664 . . Thermal 2552 | . . . 472 1955 125 Explosive 4370 | . 314 852 923 1919 362 Electromagnetic 51 | . . . . . 51 Impact 10 | . . . . 10 . Slashing . | . . . . . . Piercing . | . . . . . . Highest Corruption 3 | . . 1 . 3 1 Average Corruption 2 | . . 1 . 2 1 Corruption Purged 3 | . . . . 1 2 Corruption Blocked . | . . . . . . Effects 8 | . . 2 . 6 . Message Errors 3 | . . 2 . 1 . Matter Fused 2 | . . . . 2 . Data Loss (minor) 2 | . . . . 2 . Data Loss (major) 1 | . . . . 1 . Overload Shots . | . . . . . . Overflow Damage 138 | . . 32 27 66 13 Projectiles 60 | . . 22 11 27 . Explosions 78 | . . 10 16 39 13 Melee . | . . . . . . Knockbacks 12 | . . 4 8 . . Impact . | . . . . . . Kinetic 12 | . . 4 8 . . Secondary . | . . . . . . Self-Inflicted Damage 241 | . 52 4 48 119 18 Shots 10 | . 2 1 2 4 1 Rammed . | . . . . . . Targets Rammed 2 | . . . . 2 . Kicked 2 | . . . . 2 . Crushed . | . . . . . . Highest Temperature 559 | . 18 135 326 521 559 Average Temperature 122 | . 8 34 114 146 240 Received Heat Transfer 968 | . 261 102 243 335 27 Effects 13 | . . . 3 6 4 Shutdowns 3 | . . . . 2 1 Energy Bleed 2 | . . . 1 1 . Interference 3 | . . . 2 1 . Short Circuit 1 | . . . . . 1 Damage (major) 3 | . . . . 2 1 Damage (core) 1 | . . . . . 1 Siege Activations . | . . . . . . Robots Corrupted . | . . . . . . Combat Hostiles . | . . . . . . Parts Fried . | . . . . . . Impact Corruptions . | . . . . . . Robots Melted 4 | . . . 1 3 . Combat Hostiles 3 | . . . 1 2 . Parts Melted 8 | . . . 1 7 . Heat Transferred 4523 | . . . 777 3561 185 Parts Sabotaged . | . . . . . . Parts Stolen . | . . . . . . Parts Stripped . | . . . . . . Power Chain Reactions 1 | . . . . . 1 Alert | -11 -10 -9 -8 -7 -7 ------- Run | Yrd Mat Mat Mat Fac Sto Peak Influence 765 | 10 294 490 720 765 481 Initial 347 | . 6 56 190 327 347 Average 360 | 3 142 276 404 552 412 Maximum Alert Level 3 | . 1 2 3 3 2 Low Security (%) 28 | 100 73 38 14 . . Level 1 25 | . 26 32 36 13 44 Level 2 42 | . . 28 41 80 55 Level 3 3 | . . . 7 5 . Level 4 . | . . . . . . Level 5 . | . . . . . . High Security . | . . . . . . Max Security . | . . . . . . Squads Dispatched 10 | . 2 1 2 4 1 Investigation 2 | . 1 . . . 1 Extermination 1 | . . . . 1 . Reinforcement 7 | . 1 1 2 3 . Assault . | . . . . . . Garrison . | . . . . . . Intercept . | . . . . . . Searches Triggered . | . . . . . . Construction Impeded 5 | . . . 2 3 . Haulers Reinforced . | . . . . . . Active Scanning Responses . | . . . . . . Cargo Convoy Interrupts . | . . . . . . Stealth | -11 -10 -9 -8 -7 -7 --------- Run | Yrd Mat Mat Mat Fac Sto Distress Signals 5 | . 1 1 1 1 1 Communications Jammed . | . . . . . . Distress Signals . | . . . . . . Times Spotted 120 | . 17 23 26 47 7 Peak Tracking Total 10 | . 4 4 5 10 6 Tactical Retreats 1 | . 1 . . . . Traps | -11 -10 -9 -8 -7 -7 ------- Run | Yrd Mat Mat Mat Fac Sto Traps Triggered 3 | . 1 . . . 2 Indirectly . | . . . . . . Trap Hack Attempts . | . . . . . . Triggered . | . . . . . . Disarmed . | . . . . . . Reprogrammed . | . . . . . . Reused . | . . . . . . Traps Extracted . | . . . . . . Installed . | . . . . . . Triggered . | . . . . . . Machines | -11 -10 -9 -8 -7 -7 ---------- Run | Yrd Mat Mat Mat Fac Sto Machines Disabled 11 | . . 2 5 4 . Max in Single Turn 3 | . . 1 3 1 . Machines Repaired . | . . . . . . Machines Dismantled . | . . . . . . Machines Sabotaged . | . . . . . . Overloaded Fab Kills . | . . . . . . Hacking | -11 -10 -9 -8 -7 -7 --------- Run | Yrd Mat Mat Mat Fac Sto Machines Accessed 11 | . 2 3 2 3 1 Terminals 10 | . 2 3 2 2 1 Fabricators . | . . . . . . Repair Stations 1 | . . . . 1 . Recycling Units . | . . . . . . Scanalyzers . | . . . . . . Garrison Access . | . . . . . . Total Hacks 21 | . 2 5 4 7 3 Successful 11 | . . 2 3 6 . Failed 10 | . 2 3 1 1 3 Catastrophic 4 | . 1 1 . 1 1 Database Lockouts . | . . . . . . Manual . | . . . . . . Terminals 17 | . 2 5 4 3 3 Fabricators . | . . . . . . Repair Stations 4 | . . . . 4 . Recycling Units . | . . . . . . Scanalyzers . | . . . . . . Garrison Access . | . . . . . . Terminal Hacks 7 | . . 2 3 2 . Record 3 | . . . 1 2 . Prototype ID Bank 2 | . . 2 . . . Locate Traps 1 | . . . 1 . . Maintenance Status 1 | . . . 1 . . Fabricator Hacks . | . . . . . . Repair Station Hacks 4 | . . . . 4 . Scan Component 2 | . . . . 2 . Repair 2 | . . . . 2 . Recycling Unit Hacks . | . . . . . . Scanalyzer . | . . . . . . Garrison Access Hacks . | . . . . . . Unauthorized Hacks . | . . . . . . Terminals . | . . . . . . Fabricators . | . . . . . . Repair Stations . | . . . . . . Recycling Units . | . . . . . . Scanalyzers . | . . . . . . Garrison Access . | . . . . . . Data Cores Recovered 1 | . 1 . . . . Used . | . . . . . . Hacking Detections 9 | . 2 3 1 2 1 Full Trace Events 2 | . . 1 . . 1 Feedback Events 1 | . . 1 . . . Corruption 1 | . . 1 . . . Feedback Blocked . | . . . . . . Robot Schematics Acquired . | . . . . . . Robots Built . | . . . . . . Authchips . | . . . . . . Time . | . . . . . . Total Robot Build Rating . | . . . . . . Part Schematics Acquired . | . . . . . . Parts Built . | . . . . . . Authchips . | . . . . . . Time . | . . . . . . Total Part Build Rating . | . . . . . . Parts Repaired 2 | . . . . 2 . Time 88 | . . . . 88 . Parts Recycled . | . . . . . . Recycled Matter . | . . . . . . Retrieved Matter . | . . . . . . Retrieved Components . | . . . . . . Parts Scanalyzed . | . . . . . . Part Schematics Acquired . | . . . . . . Parts Damaged . | . . . . . . Bothacking | -11 -10 -9 -8 -7 -7 ------------ Run | Yrd Mat Mat Mat Fac Sto Used RIF Installer . | . . . . . . Robots Hacked . | . . . . . . Non-combat . | . . . . . . Combat . | . . . . . . Robot Hacks Applied . | . . . . . . Relay Couplers Released 4 | . . . . 4 . Programmers 4 | . . . . 4 . Fabnet Peak Effective % . | . . . . . . Robots Rewired . | . . . . . . Allies Hacked . | . . . . . . Hacks Repelled . | . . . . . . Allies | -11 -10 -9 -8 -7 -7 -------- Run | Yrd Mat Mat Mat Fac Sto Total Allies . | . . . . . . Largest Group . | . . . . . . Highest-Rated Group . | . . . . . . Highest-Rated Ally . | . . . . . . Total Orders . | . . . . . . Ally Attacks . | . . . . . . Total Damage . | . . . . . . Kills . | . . . . . . Allies Corrupted . | . . . . . . Allies Melted . | . . . . . . Intel | -11 -10 -9 -8 -7 -7 ------- Run | Yrd Mat Mat Mat Fac Sto Robot Analysis Total . | . . . . . . Derelict Logs Recovered . | . . . . . . Drone Launches . | . . . . . . Drone Recoveries . | . . . . . . Exploration | -11 -10 -9 -8 -7 -7 ------------- Run | Yrd Mat Mat Mat Fac Sto Turns Passed 3624 | 126 501 1119 631 1118 129 Spaces Moved 1783 | 77 231 557 318 548 52 Core 30 | 30 . . . . . Treads 926 | 47 231 557 91 . . Legs 668 | . . . 227 425 16 Wheels 159 | . . . . 123 36 Hover . | . . . . . . Flight . | . . . . . . Fastest Speed 50 | 50 160 160 130 110 120 Average Speed 147 | 124 160 160 139 137 141 Slowest Speed 270 | 160 160 160 270 200 190 Overloaded Moves . | . . . . . . Propulsion Burnouts . | . . . . . . Robots Hopped . | . . . . . . Cave-ins Triggered . | . . . . . . Exploration Rate (%) 29 | 6 55 49 37 16 14 Regions Visited 5 Branch Regions 1 Pre-discovered Areas . | . . . . . . Known Exits Taken . | . . . . . . Unknown Exits Taken 5 | 1 1 1 1 1 . Scrap Searched . | . . . . . . Spaces Dug . | . . . . . . Terrain Destroyed 479 | . 42 110 163 108 56 Melee . | . . . . . . Projectile 35 | . . 9 19 2 5 AOE 444 | . 42 101 144 106 51 Terrain Rammed . | . . . . . . Walls Destroyed . | . . . . . . Machines Disabled . | . . . . . . Actions | -11 -10 -9 -8 -7 -7 --------- Run | Yrd Mat Mat Mat Fac Sto Total 2343 | 99 294 678 411 773 88 Wait 99 | . . 5 6 88 . Move 1778 | 76 230 556 317 547 52 Hop . | . . . . . . Pick Up 75 | 12 11 18 13 19 2 Fast Attach 22 | 1 . 4 5 12 . Attach 26 | 6 1 1 4 12 2 Detach . | . . . . . . Swap 26 | . 5 8 2 8 3 Drop 63 | . 6 25 15 15 2 Fire 234 | 4 41 61 49 68 11 Melee . | . . . . . . Ram . | . . . . . . Kick 2 | . . . . 2 . Crush . | . . . . . . Escape Stasis 16 | . . . . . 16 Rewire 2 | . . . . 2 . Trap . | . . . . . . Miscellaneous . | . . . . . . Route ------- -11/Scrapyard -10/Materials -9/Materials -8/Materials -7/Factory -7/Storage History --------- Turn | Location | Event 3 | -11/Scrapyard | Discovered new exit (range 15) 127 | -11/Scrapyard | Entered Materials 320 | -10/Materials | Build established: Mutant 614 | -10/Materials | Discovered new exit (range 3) 628 | -10/Materials | Entered another Materials area 628 | -9/Materials | Evolved 2 slots: Propulsion x1, Weapon x1 1097 | -9/Materials | Build established: Scavenger-Skirmisher 1732 | -9/Materials | Discovered new exit (range 10) 1747 | -9/Materials | Entered another Materials area 1747 | -8/Materials | Evolved 2 slots: Utility x2 2084 | -8/Materials | Destroyed 8 combat bots 2294 | -8/Materials | Discovered new exit (range 12) 2350 | -8/Materials | Destroyed 7 combat bots 2378 | -8/Materials | Entered Factory 2378 | -7/Factory | Evolved 2 slots: Power x1, Utility x1 2766 | -7/Factory | Repaired Imp. Titanium Leg 2814 | -7/Factory | Repaired Imp. Deuterium Engine 2888 | -7/Factory | Lost 3 parts (1n1u1w) 3255 | -7/Factory | Lost 7 parts (1p1n1u4w) 3272 | -7/Factory | Core integrity fell below 50% 3306 | -7/Factory | Lost 4 parts (1p2n1w) 3479 | -7/Factory | Discovered new exit (range 14) 3496 | -7/Factory | Entered Storage 3549 | -7/Storage | Core integrity fell below 20% 3625 | -7/Storage | Destroyed by S-27 Virus with Autogun Last Messages --------------- 03593_ K-01 Serf collects debris. 03594_ U-05 Engineer lays Concrete. 03595_ U-05 Engineer builds a Wall. 03596_ The unstable cave ceiling collapses. 03598_ K-01 Serf collects debris. 03599_ U-05 Engineer lays Concrete. 03602_ U-05 Engineer builds a Wall. 03603_ K-01 Serf collects debris. 03606_ U-05 Engineer lays Concrete. 03609_ U-05 Engineer builds a Wall. 03611_ K-01 Serf collects debris. 03613_ U-05 Engineer lays Concrete. 03615_ K-01 Serf collects debris. 03616_ W-25 Informer sends out distress signal. 03620_ U-05 Engineer lays Concrete. 03621_ K-01 Serf collects debris. 03623_ The unstable cave ceiling collapses. 03623_ U-05 Engineer lays Concrete. 03623_ Door malfunctions. 03624_ U-05 Engineer lays Concrete. Map ----- +----------------------------------------------------+ | ?????????????????????????????????????????????????? | | ?????????????????????????????????????????????????? | | ?????????????????????????????????????????????????? | | ?????????????????????????????????????????????????? | | ?????????????????????????????????????????????????? | | ?????????????????????????????????????????????????? | | ?????????????????????????????????????????????????? | | ?????????????????????????????????????????????????? | | ???????????????????????????? ????????????????????? | | ?????????????????????#????? ? ??????????????????? | | ???????????????????????? ??? ????? ??????????????? | | ???????????????????? ?#??#?#???#????? ???????????? | | ??????????????????????#?##??????? ?? ???????????? | | ???????????????? ? ????#?#?????# ??????????????? | | ????????????????#??? ???#####?#??????? ??????????? | | ??????????????????## ??## ##?#+##+##???????????? | | ?????????????###???????## #? ????????????? | | ????????????#???? ? ? # # [ ? ? ????????? | | ?????????????????????? # # ? ??????? ?????? | | ??????????????? " ?? ?# # """ +???????????? | | ????????????#?#??? ? + s """ ?# ? ???????? | | ?????????????##?? ??? # # """ " ? ? ????????? | | ?????????????#? ? ?? ?# """ T ?? ? ???+???? | | ????????????#?#?"""? ? # s """ "g#??? ???? ?? | | ?????????????#?? ?# s w ##?# #??? ?? | | ?????????????????#?######@ ##""T""###### ?#?# ?? | | ?????????????####??#?#?## ##"""""#?####??#??#"?" | | ??????????? ???####?##### ############# #####"?? | | ??????????# ? ??##?#?#### #?########### #####"?" | | ??????????? ??######??### ###?##?#?####+??###??# | | ????????????? ??## ### ####?#?# ? ? ##### | | ??????????? ? ##?# ???### #######??"""" #?## | | ???????????? ?? ?? ### ####??##?"? " ? #### | | ??????????? #?? ? ? # # # ###### " " ? #### | | ???????????????? ?? # # [k# ####?? " " ?? #### | | ??????????# ?# ?? ? # # [] ##### " " ? ####" | | ??????????#? ?#####??### = # # #### """" ? #?## | | ???????????????#??#?### # u ## ### ? ? #?## | | ????????????? ######## # "##+##+#########+ | | ????????????? ^ | | ?????????????? | | ??????????????? | | ?????????????? ####+#### #######+########## | | ????????????????? ??#?## #### ? ? ?### | | ????????????????T ?? ############# ?""" """ ?##?? | | ????????????????? #########?### "?"?"?? #### | | ?????????????????? ? #????##?##### ? ?"" ?"" #### | | ?????????????????????##??#???####?? ? #?#? | | ???????????????????##?####?#?#?#######?########### | | | +----------------------------------------------------+ Best States ------------- Heat Dissipation 48 Energy Generation 27 Energy Capacity 480 Matter Stores 300 Matter Capacity 300 Sight Range 16 Terrain Scan Range 16 Terrain Scan Density 210 Armor Coverage 225 Evasion (%) 55 Recoil Reduction 3 Offensive Hacking 10 Item Schematics ----------------- None Robot Schematics ------------------ None Fabricated ------------ Nothing Alien Tech Used ----------------- None Achievements -------------- Omniscient Cartographer Challenges ------------ None Game ------ Seed StealthAerolevReplicator Manual? 0 Play Time 01:13:11 Cumulative 9.7 hours Start 2024.04.04 @ 16:59:52 End 2024.04.04 @ 21:59:00 Sessions 3 Manual Loads 0 Difficulty Rogue Special Mode None Game No. 10 Rogue 10 Adventurer 0 Explorer 0 Win Type - Total 0 Types 0/0/0/0/0/0/0/0/0 Lore% 14 Gallery% 17 Achievement% 13 Wizard Run 0 Options --------- Layout 0 ASCII 0 Keyboard 0 Movement Arrows Keybinds 0 Fullscreen 1 Font 18/SmallcapsGlow Map View 76x50 Zoom Use 0% Tactical HUD 1 Map Filters NONE Filters NONE Steam 1 RUN: 98a8ee7f-b726-4668-93d5-dd682ffc8549